bitfinex-derivatives/quotes_ETHF0:USTF0_20250103
["timestamp","ask_amount","ask_price","bid_price","bid_amount"]
[1735869799787,0.28912,3462.3,3461.8,3.2078]
[1735869800086,0.28912,3462.3,3462.2,0.28913]
[1735869800989,0.28912,3462.4,3462.2,0.28913]
[1735869801394,0.28912,3462.4,3461.8,3.2078]
[1735869801586,41.08912,3462.4,3462.2,0.28913]
[1735869802193,41.08912,3462.4,3462.3,0.28912]
[1735869803090,41.08912,3462.4,3462.2,0.28913]
[1735869803293,41.08912,3462.4,3461.8,3.2078]
[1735869803497,41.08912,3462.4,3462.3,0.28912]
[1735869804294,41.08912,3462.4,3462.2,0.28913]
[1735869804500,2.27836498,3462.6,3462.3,0.28912]
[1735869804800,0.28911,3462.5,3462.3,0.28912]
[1735869805501,40.8,3462.4,3462.3,0.28912]
[1735869806998,5.48616498,3462.9,3462.8,0.28908]
[1735869807201,3.2078,3462.9,3462.8,0.28908]
[1735869807501,2.27836498,3463.2,3462.1,0.72284]
[1735869807502,2.56741498,3463.2,3463.0,0.28907]
[1735869807999,40.8,3463.1,3463.0,0.28907]
[1735869812707,3.2078,3463.6,3463.5,0.28902]
[1735869813206,0.289,3463.8,3463.6,0.28901]
[1735869813606,40.8,3463.7,3463.2,3.2078]
[1735869813803,40.8,3463.7,3463.5,0.28902]
[1735869814104,41.08901,3463.7,3463.5,0.28902]
[1735869814699,40.8,3463.7,3463.2,3.2078]
[1735869814900,0.28904,3463.3,3463.2,3.2078]
[1735869815802,2.27836498,3463.4,3462.7,10.21824792]
[1735869816004,40.8,3463.7,3462.7,10.21824792]
[1735869816005,0.28908,3462.9,3462.7,10.21824792]
[1735869816204,2.27836498,3463.1,3462.7,10.21824792]
[1735869816511,0.28908,3462.9,3462.7,10.21824792]
[1735869816807,0.28908,3462.9,3462.7,3.49689]
[1735869817108,0.28908,3462.9,3462.8,0.28908]
[1735869817404,0.28907,3463.0,3462.8,0.28908]
[1735869818199,2.27836498,3463.1,3462.7,3.2078]
[1735869818395,2.56744498,3462.8,3462.7,3.2078]
[1735869819002,40.8,3462.8,3462.7,3.49689]
[1735869819205,41.08908,3462.8,3462.7,3.2078]
[1735869819407,40.8,3462.8,3462.7,3.2078]
[1735869819601,40.8,3462.8,3462.7,3.49689]
[1735869821807,0.28907,3462.9,3462.8,0.28908]
[1735869822209,41.08907,3462.9,3462.8,0.28908]
[1735869822410,40.8,3462.9,3462.8,0.28908]
[1735869825810,2.56740498,3463.4,3463.3,0.28904]
[1735869826209,43.07836498,3463.4,3463.3,0.28904]
[1735869826512,43.36739498,3463.4,3463.3,0.28904]
[1735869827513,41.08903,3463.4,3463.3,0.28904]
[1735869827916,40.8,3463.4,3463.3,0.28904]
[1735869829115,40.8,3463.4,3463.3,13.30521658]
[1735869829308,3.2078,3463.9,3463.3,13.01617658]
[1735869829508,3.2078,3463.9,3463.8,0.289]
[1735869829912,40.8,3463.9,3463.8,0.289]
[1735869831411,40.8,3463.9,3463.7,0.289]
[1735869831619,40.8,3463.9,3463.6,6.72135792]
[1735869831818,40.8,3463.9,3463.7,0.289]
[1735869832313,40.8,3463.9,3463.7,0.28901]
[1735869832516,0.289,3463.8,3463.5,0.28902]
[1735869832709,40.8,3463.9,3463.4,9.92915792]
[1735869832911,41.08899,3463.9,3463.6,0.28901]
[1735869833111,40.8,3463.9,3463.4,3.2078]
[1735869833418,0.289,3463.8,3463.5,0.28902]
[1735869836113,0.28902,3463.5,3463.4,3.2078]
[1735869837613,0.28904,3463.3,3463.1,0.28905]
[1735869838016,2.27836498,3463.7,3462.9,7.84935792]
[1735869838222,2.27836498,3463.7,3463.1,0.28905]
[1735869838419,0.28904,3463.3,3463.1,0.28905]
[1735869838920,2.27836498,3463.7,3462.9,1.128]
[1735869839120,0.28903,3463.5,3463.3,0.28903]
[1735869839510,0.28902,3463.6,3463.4,0.28903]
[1735869839919,5.48616498,3464.3,3463.2,3.2078]
[1735869840319,0.289,3463.8,3463.6,0.28901]
[1735869841527,0.289,3463.8,3463.7,0.28901]
[1735869841721,0.28899,3463.9,3463.7,0.28901]
[1735869841919,2.56735498,3464.0,3463.7,0.28901]
[1735869842625,40.8,3464.2,3463.9,0.28899]
[1735869842626,41.08897,3464.2,3463.9,0.28899]
[1735869842924,5.48616498,3464.3,3463.9,0.28899]
[1735869843119,0.28897,3464.2,3463.9,0.28899]
[1735869843320,0.28898,3464.1,3463.9,0.28899]
[1735869843519,0.28899,3464.0,3463.8,0.289]
[1735869843824,5.48616498,3464.3,3463.6,9.92915792]
[1735869844021,0.289,3463.9,3463.6,10.21816792]
[1735869844720,0.28899,3463.9,3463.6,10.21816792]
[1735869844921,0.28899,3463.9,3463.6,3.49681]
[1735869845226,0.289,3463.8,3463.6,3.2078]
[1735869845616,2.27836498,3464.0,3463.6,3.2078]
[1735869845820,0.289,3463.8,3463.6,3.49681]
[1735869846319,0.28899,3463.9,3463.7,0.28901]
[1735869846722,2.27836498,3464.0,3463.6,3.2078]
[1735869846925,0.28899,3464.0,3463.8,0.289]
[1735869847323,5.48616498,3464.3,3463.6,3.49681]
[1735869847521,0.28899,3463.9,3463.7,0.289]
[1735869848324,0.28899,3463.9,3463.6,9.92915792]
[1735869848325,5.48616498,3464.3,3463.6,9.92915792]
[1735869848625,0.289,3463.9,3463.7,0.289]
[1735869848825,5.48616498,3464.3,3463.6,3.2078]
[1735869849125,0.289,3463.8,3463.6,3.49681]
[1735869849328,0.28897,3464.2,3463.7,0.289]
[1735869849527,0.28899,3464.0,3463.7,0.289]
[1735869849720,5.48616498,3464.3,3463.6,3.2078]
[1735869849923,0.28901,3463.7,3463.6,3.2078]
[1735869850328,40.8,3463.7,3463.6,3.49682]
[1735869850526,41.08901,3463.7,3463.6,3.49682]
[1735869851329,41.08901,3463.7,3463.6,3.2078]
[1735869851628,0.28901,3463.7,3463.6,3.2078]
[1735869852233,41.08901,3463.7,3463.6,3.2078]
[1735869852529,43.36737498,3463.7,3463.6,3.2078]
[1735869852729,0.28904,3463.3,3463.2,6.72135792]
[1735869853126,2.27836498,3463.4,3462.9,9.92915792]
[1735869853332,0.28907,3463.0,3462.9,9.92915792]
[1735869854425,0.28907,3463.0,3462.9,3.2078]
[1735869854621,0.28909,3462.7,3462.6,6.72135792]
[1735869855622,0.28911,3462.5,3462.4,3.2078]
[1735869856330,41.08911,3462.5,3462.4,3.2078]
[1735869857031,0.28911,3462.5,3462.4,3.2078]
[1735869857230,0.2891,3462.6,3462.4,3.49692]
[1735869857433,40.8,3462.6,3462.5,0.28911]
[1735869858431,2.27836498,3463.1,3462.5,6.59173018]
[1735869858633,0.28909,3462.7,3462.5,6.59173018]
[1735869859032,0.28909,3462.7,3462.6,13.05664372]
[1735869859927,0.28909,3462.7,3462.5,7.04312354]
[1735869863435,0.28909,3462.7,3462.5,0.2891]
[1735869864136,0.28909,3462.7,3462.5,3.4969]
[1735869864341,0.28909,3462.7,3462.5,3.2078]
[1735869864525,2.27836498,3462.8,3462.5,3.2078]
[1735869864726,2.14261034,3462.8,3462.5,3.2078]
[1735869865141,0.28909,3462.7,3462.5,3.2078]
[1735869865831,0.28909,3462.7,3462.5,3.49691]
[1735869867437,0.28909,3462.7,3462.5,0.28911]
[1735869868132,0.28909,3462.7,3462.6,0.2891]
[1735869870140,2.43170034,3462.8,3462.6,0.2891]
[1735869870638,0.28909,3462.7,3462.6,0.2891]
[1735869870939,2.43169034,3462.8,3462.7,0.28909]
[1735869871241,0.28908,3462.8,3462.7,0.28909]
[1735869872638,0.28908,3462.9,3462.8,0.28908]
[1735869874144,3.49684,3463.3,3462.9,0.28907]
[1735869874334,3.2078,3463.3,3463.2,0.28905]
[1735869874534,2.56740498,3463.4,3463.2,0.28905]
[1735869874734,40.8,3463.3,3463.2,0.28905]
[1735869875336,41.08904,3463.3,3463.2,0.28905]
[1735869875538,40.8,3463.3,3463.2,0.28905]
[1735869876536,5.48616498,3464.0,3463.2,3.2078]
[1735869876743,5.77515498,3464.0,3463.2,3.2078]
[1735869876938,40.8,3463.9,3463.8,0.289]
[1735869878746,40.8,3463.9,3463.6,3.2078]
[1735869879054,41.08899,3463.9,3463.7,0.289]
[1735869879249,0.289,3463.8,3463.6,3.49681]
[1735869881147,40.8,3463.9,3463.6,3.2078]
[1735869881354,0.289,3463.8,3463.6,3.49682]
[1735869883743,40.8,3463.9,3463.4,6.75402354]
[1735869884045,41.08899,3463.9,3463.7,0.289]
[1735869885543,0.289,3463.8,3463.6,0.28901]
[1735869886550,0.289,3463.8,3463.3,6.75402354]
[1735869886849,0.28901,3463.7,3463.4,0.28902]
[1735869887045,0.28901,3463.7,3463.5,0.28902]
[1735869887450,0.289,3463.8,3463.6,0.28902]
[1735869887848,0.289,3463.8,3463.7,0.28901]
[1735869888147,41.08899,3463.9,3463.7,0.28901]
[1735869888746,40.8,3463.9,3463.3,6.75402354]
[1735869889049,0.289,3463.8,3463.6,0.28901]
[1735869889250,0.289,3463.8,3463.3,6.75402354]
[1735869889648,0.289,3463.8,3463.7,0.28901]
[1735869890850,0.289,3463.8,3463.3,6.75402354]
[1735869891050,0.289,3463.8,3463.6,0.28901]
[1735869891248,0.289,3463.8,3463.7,0.28901]
[1735869891450,0.289,3463.8,3463.6,0.28901]
[1735869891649,0.289,3463.8,3463.3,6.75402354]
[1735869891856,0.289,3463.8,3463.6,0.28901]
[1735869893045,0.28901,3463.7,3463.6,0.28901]
[1735869894353,0.289,3463.8,3463.6,0.28901]
[1735869895251,0.289,3463.8,3463.4,6.75402354]
[1735869895447,0.289,3463.8,3463.6,0.28901]
[1735869897252,0.28902,3463.6,3463.5,0.28902]
[1735869897450,0.28901,3463.7,3463.5,0.28902]
[1735869897854,0.28901,3463.7,3463.6,0.28902]
[1735869898357,40.8,3463.9,3463.6,0.28902]
[1735869898559,0.289,3463.8,3463.6,0.28902]
[1735869898955,0.289,3463.8,3463.7,0.28901]
[1735869900556,0.28901,3463.7,3463.5,0.28902]
[1735869900761,0.28901,3463.7,3463.6,0.28902]
[1735869900958,0.289,3463.8,3463.6,0.28902]
[1735869902355,40.8,3463.9,3463.6,0.28902]
[1735869902561,40.8,3463.9,3463.4,6.75402354]
[1735869902760,0.28902,3463.5,3463.4,6.75402354]
[1735869903063,0.28903,3463.4,3463.3,6.75402354]
[1735869904462,0.28903,3463.4,3463.3,7.04306354]
[1735869904657,0.28903,3463.4,3463.3,0.28904]
[1735869904965,0.28904,3463.3,3463.2,3.49685]
[1735869905162,0.28904,3463.3,3463.1,0.28905]
[1735869905365,0.28904,3463.3,3463.2,0.28905]
[1735869905862,2.27836498,3463.7,3463.0,4.49879332]
[1735869906063,0.28904,3463.3,3463.2,0.28905]
[1735869906267,0.28906,3463.1,3463.0,4.49879332]
[1735869907760,0.28907,3463.0,3462.9,4.49879332]
[1735869909070,0.28907,3462.9,3462.8,7.99567332]
[1735869909472,0.28907,3462.9,3462.8,4.49879332]
[1735869915679,0.28909,3462.7,3462.6,4.49879332]
[1735869915884,41.08909,3462.7,3462.6,4.49879332]
[1735869916182,41.08909,3462.7,3462.6,7.04312354]
[1735869916377,41.08909,3462.7,3462.6,13.33622555]
[1735869916684,0.28909,3462.8,3462.7,0.28909]
[1735869916881,0.28909,3462.7,3462.6,13.04712555]
[1735869917476,0.28909,3462.7,3462.6,6.75402354]
[1735869918281,0.28909,3462.7,3462.6,4.50465901]
[1735869918982,0.28909,3462.7,3462.6,4.79375901]
[1735869919185,0.28909,3462.7,3462.6,6.58218147]
[1735869920187,0.28909,3462.8,3462.6,6.58218147]
[1735869920683,40.8,3463.0,3462.6,6.29308147]
[1735869920879,5.48616498,3463.1,3462.6,6.29308147]
[1735869920880,3.2078,3463.1,3462.6,6.29308147]
[1735869921077,0.28907,3462.9,3462.8,0.28908]
[1735869921277,44.0078,3463.1,3462.7,4.50231765]
[1735869921481,0.28907,3463.0,3462.9,0.28907]
[1735869923781,0.28907,3463.0,3462.9,4.79138765]
[1735869924178,0.28907,3463.0,3462.9,4.50231765]
[1735869924980,40.8,3463.1,3462.9,4.79138765]
[1735869925383,0.28907,3463.0,3462.9,4.50231765]
[1735869926284,40.8,3463.1,3462.8,4.79139765]
[1735869926482,0.28907,3463.0,3462.9,0.28907]
[1735869926984,41.08906,3463.1,3463.0,0.28907]
[1735869927190,0.28904,3463.3,3463.2,0.28904]
[1735869927591,41.08904,3463.3,3463.2,0.28904]
[1735869928185,41.08904,3463.3,3463.1,4.50231765]
[1735869928389,0.28905,3463.2,3463.1,4.79136765]
[1735869928990,40.8,3463.3,3463.1,4.50231765]
[1735869929194,41.08904,3463.3,3463.2,0.28905]
[1735869929489,40.8,3463.3,3463.1,0.28905]
[1735869929785,0.28905,3463.2,3463.1,0.28905]
[1735869930085,40.8,3463.3,3462.9,6.75402354]
[1735869930086,0.28907,3463.0,3462.9,6.75402354]
[1735869930680,5.48616498,3463.1,3462.6,4.50349751]
[1735869930885,0.28909,3462.7,3462.6,4.50349751]
[1735869931984,40.8,3462.9,3462.5,4.50349751]
[1735869931985,0.2891,3462.6,3462.5,4.50349751]
[1735869932186,0.2891,3462.6,3462.5,4.79260751]
[1735869935186,0.2891,3462.7,3462.6,0.2891]
[1735869936388,40.8,3462.9,3462.5,4.50349751]
[1735869936590,0.28909,3462.7,3462.6,4.50349751]
[1735869940393,0.28909,3462.7,3462.6,6.28567785]
[1735869940898,40.8,3462.9,3462.6,6.28567785]
[1735869941099,0.28909,3462.7,3462.6,6.57476785]
[1735869941797,0.28909,3462.7,3462.6,7.04311354]
[1735869943595,0.28909,3462.7,3462.6,13.3323588]
[1735869944398,0.28909,3462.7,3462.6,13.0432688]
[1735869944601,0.28909,3462.7,3462.6,6.28924526]
[1735869946298,0.28909,3462.7,3462.6,13.05365076]
[1735869947808,0.28909,3462.7,3462.6,6.28924526]
[1735869948202,0.28909,3462.7,3462.6,6.57834526]
[1735869948919,0.28909,3462.7,3462.6,6.28924526]
[1735869949904,0.28909,3462.7,3462.6,15.30225291]
[1735869950095,41.08909,3462.7,3462.6,15.30225291]
[1735869955105,41.08909,3462.7,3462.6,6.28924526]
[1735869956808,41.08909,3462.7,3462.6,15.30225291]
[1735869957509,0.28909,3462.7,3462.6,19.1978596]
[1735869957708,1.00234755,3463.0,3462.6,19.54658906]
[1735869957908,0.28909,3462.7,3462.6,19.1978496]
[1735869958207,0.28909,3462.7,3462.6,19.54659736]
[1735869958407,0.28909,3462.7,3462.6,19.54658923]
[1735869958610,0.28909,3462.7,3462.6,30.80461825]
[1735869959707,3.2078,3463.1,3462.9,0.28907]
[1735869959708,3.49686,3463.1,3462.9,0.28907]
[1735869960010,3.2078,3463.1,3463.0,0.28907]
[1735869960210,40.8,3463.1,3463.0,0.28907]
[1735869960606,41.08906,3463.1,3463.0,0.28907]
[1735869960807,41.08906,3463.1,3463.0,28.23409459]
[1735869961006,40.8,3463.1,3463.0,28.23409459]
[1735869961615,0.28905,3463.3,3463.1,0.28905]
[1735869962112,41.08905,3463.3,3463.1,0.28905]
[1735869962301,41.08905,3463.3,3463.2,0.28905]
[1735869962502,41.08905,3463.3,3463.1,0.28905]
[1735869962810,3.2078,3463.6,3463.2,1.00234755]
[1735869963007,0.28901,3463.7,3463.5,0.28902]
[1735869963208,1.00234755,3463.8,3463.4,1.00234755]
[1735869963509,0.28901,3463.7,3463.4,1.00234755]
[1735869963811,40.8,3464.0,3463.8,0.28899]
[1735869964014,4.21014755,3464.1,3463.8,0.28899]
[1735869964015,3.2078,3464.1,3463.8,1.00234755]
[1735869964316,0.28895,3464.4,3464.1,0.28897]
[1735869964716,4.58329822,3464.5,3464.1,0.28897]
[1735869964916,0.28896,3464.3,3464.1,0.28897]
[1735869965214,0.28896,3464.3,3464.0,1.29132755]
[1735869965611,0.28897,3464.2,3464.0,1.29132755]
[1735869965810,0.28896,3464.3,3464.0,1.29132755]
[1735869966012,0.28896,3464.3,3464.2,13.05591432]
[1735869967217,0.28896,3464.3,3464.2,4.50138855]
[1735869967414,44.0078,3464.5,3464.2,4.50138855]
[1735869967619,0.28896,3464.3,3464.2,4.50138855]
[1735869968318,44.0078,3464.5,3464.1,4.50138855]
[1735869968518,44.29675,3464.5,3464.2,0.28897]
[1735869968718,44.29675,3464.5,3464.1,4.50138855]
[1735869969218,44.29675,3464.5,3464.3,0.28895]
[1735869969417,44.0078,3464.5,3464.3,0.28895]
[1735869969614,40.8,3464.5,3464.3,0.28895]
[1735869971119,40.8,3464.5,3464.1,7.70918855]
[1735869971325,0.28897,3464.2,3464.1,7.70918855]
[1735869971623,0.28897,3464.2,3464.1,4.50138855]
[1735869972120,0.28897,3464.2,3463.9,4.50138855]
[1735869972314,0.28897,3464.1,3463.9,4.79037855]
[1735869973120,0.28897,3464.1,3463.9,3.49679]
[1735869973719,0.28897,3464.2,3464.0,0.28898]
[1735869976823,0.28897,3464.2,3463.8,3.2078]
[1735869977024,0.28896,3464.3,3464.1,0.28897]
[1735869977425,40.8,3464.5,3464.1,0.28897]
[1735869977718,0.28896,3464.3,3464.1,0.28897]
[1735869978920,0.28897,3464.2,3464.1,0.28897]
[1735869979330,0.28897,3464.2,3464.0,0.28898]
[1735869979624,0.28897,3464.2,3463.8,3.2078]
[1735869979825,40.8,3464.5,3464.1,0.28897]
[1735869980021,40.8,3464.5,3464.0,0.28898]
[1735869980022,0.28897,3464.2,3464.0,0.28898]
[1735869983029,0.28897,3464.2,3463.8,3.2078]
[1735869983430,0.28897,3464.2,3464.0,0.28898]
[1735869983825,40.8,3464.5,3463.8,3.2078]
[1735869984027,0.28896,3464.3,3464.2,0.28896]
[1735869984330,0.28896,3464.3,3463.8,3.2078]
[1735869984630,0.28896,3464.3,3464.1,0.28897]
[1735869985025,0.28895,3464.4,3464.3,0.28895]
[1735869985227,0.28895,3464.4,3464.2,0.28896]
[1735869985423,0.28895,3464.4,3464.3,0.28896]
[1735869985628,40.8,3464.5,3464.3,0.28896]
[1735869985829,40.8,3464.5,3463.8,3.2078]
[1735869986027,0.28896,3464.4,3464.2,0.28896]
[1735869986431,40.8,3464.5,3464.2,0.28896]
[1735869986631,0.28896,3464.3,3464.2,0.28896]
[1735869988132,0.28896,3464.3,3464.1,3.49677]
[1735869988330,0.28897,3464.2,3464.1,3.49677]
[1735869988532,0.28897,3464.2,3464.1,3.2078]
[1735869988734,0.28897,3464.2,3464.1,3.49677]
[1735869990829,0.28896,3464.3,3464.1,3.49677]
[1735869991532,0.28896,3464.3,3464.2,0.28897]
[1735869993137,0.28896,3464.3,3464.1,0.28897]
[1735869993732,0.28896,3464.3,3464.0,3.2078]
[1735869993934,0.28896,3464.3,3464.2,0.28897]
[1735869994440,0.28896,3464.3,3464.2,0.63730713]
[1735869994837,0.28896,3464.3,3464.2,0.28897]
[1735869995531,0.28896,3464.3,3464.2,0.63730167]
[1735869995732,0.28896,3464.3,3464.2,0.28897]
[1735869995931,1.0014344,3464.4,3464.0,3.2078]
[1735869996132,1.2903844,3464.4,3464.3,0.28896]
[1735869996538,0.28896,3464.3,3464.2,0.28896]
[1735869996741,0.28896,3464.3,3464.2,0.63726364]
[1735869997341,1.2903844,3464.4,3464.2,0.34830364]
[1735869997640,1.2903844,3464.4,3464.2,0.28896]
[1735869998731,0.28896,3464.3,3464.2,0.28896]
[1735869998940,1.0014344,3464.4,3464.2,0.3482708]
[1735869999141,1.2903944,3464.4,3464.0,7.70918855]
[1735869999438,1.0014344,3464.4,3464.2,0.28897]
[1735869999633,0.28896,3464.3,3464.2,0.28897]
[1735870000441,0.28896,3464.3,3464.1,0.28897]
[1735870000636,0.28896,3464.3,3464.2,0.28897]
[1735870002143,0.28896,3464.3,3464.2,4.50138855]
[1735870003341,0.28896,3464.3,3464.2,5.13862985]
[1735870004443,0.28896,3464.3,3464.2,13.67931928]
[1735870004642,0.28896,3464.3,3464.2,13.33104781]
[1735870004844,0.28896,3464.3,3464.2,13.67932808]
[1735870005141,0.28896,3464.3,3464.2,13.33104781]
[1735870005344,0.28896,3464.3,3464.2,6.56437875]
[1735870005845,0.28896,3464.3,3464.2,6.91267282]
[1735870006248,0.28896,3464.3,3464.2,15.93489824]
[1735870006950,0.28896,3464.3,3464.2,15.93493512]
[1735870007449,0.28896,3464.3,3464.2,15.58660417]
[1735870007642,0.28896,3464.3,3464.2,15.93495283]
[1735870009149,0.28896,3464.3,3464.2,30.75385314]
[1735870010044,0.28896,3464.3,3464.2,30.46488253]
[1735870010243,0.28896,3464.3,3464.2,18.85850546]
[1735870010643,0.28896,3464.3,3464.2,19.2068649]
[1735870011047,0.28896,3464.3,3464.2,18.85850546]
[1735870011253,0.28896,3464.3,3464.2,19.20688357]
[1735870012338,0.28896,3464.3,3464.2,18.85850546]
[1735870012542,0.28896,3464.3,3464.2,19.20688892]
[1735870013052,0.28895,3464.4,3464.2,19.49585892]
[1735870013253,0.28895,3464.4,3464.2,19.14747546]
[1735870014353,0.28895,3464.4,3464.3,30.14646068]
[1735870014556,0.28895,3464.4,3464.3,30.49479773]
[1735870014854,0.28895,3464.4,3464.3,30.49479286]
[1735870015152,0.28895,3464.4,3464.3,30.14646068]
[1735870016552,0.28895,3464.4,3464.3,18.85850546]
[1735870020851,0.28895,3464.4,3464.3,19.20682037]
[1735870021646,0.28895,3464.4,3464.3,19.20681422]
[1735870022557,0.28895,3464.4,3464.3,28.23726322]
[1735870023353,0.28895,3464.4,3464.3,19.20681422]
[1735870024558,0.28895,3464.4,3464.3,19.2070118]
[1735870027659,0.28895,3464.4,3464.3,19.20707303]
[1735870028463,1.2903844,3464.4,3464.3,19.20707303]
[1735870028652,0.28895,3464.4,3464.3,19.20707303]
[1735870030665,0.28895,3464.4,3464.3,18.85850546]
[1735870030964,0.28895,3464.4,3464.3,19.20706]
[1735870031267,3.2078,3465.0,3464.3,19.20704528]
[1735870031565,0.28891,3464.9,3464.7,0.28892]
[1735870031868,3.2078,3465.0,3464.9,0.28891]
[1735870032362,40.8,3465.0,3464.9,3.84494866]
[1735870032763,0.28889,3465.1,3464.9,3.84494866]
[1735870032964,0.28889,3465.1,3465.0,0.2889]
[1735870033368,3.2078,3465.6,3464.9,34.35569508]
[1735870033661,3.2078,3465.6,3465.3,1.0014344]
[1735870033857,40.8,3465.5,3465.4,0.28886]
[1735870034057,41.08886,3465.5,3465.4,0.28886]
[1735870034252,40.8,3465.5,3465.4,7.05506174]
[1735870034461,0.28883,3465.9,3465.7,0.28884]
[1735870035265,0.28883,3465.9,3465.5,1.0014344]
[1735870035266,0.28883,3465.8,3465.6,0.28885]
[1735870035765,40.8,3466.0,3465.6,9.31045232]
[1735870035966,0.28884,3465.8,3465.6,9.31045232]
[1735870036858,0.28884,3465.8,3465.7,12.95029248]
[1735870037053,1.2902744,3465.8,3465.7,12.95029248]
[1735870037456,0.28884,3465.8,3465.7,12.95029248]
[1735870037662,0.28884,3465.8,3465.7,13.23913248]
[1735870037860,0.28884,3465.8,3465.7,12.95029248]
[1735870038265,0.28884,3465.8,3465.7,4.49845533]
[1735870038668,0.28883,3465.9,3465.7,4.78729533]
[1735870038867,41.08882,3466.0,3465.8,0.28883]
[1735870039160,41.08882,3466.0,3465.9,1.2902544]
[1735870039161,40.8,3466.0,3465.9,1.2902544]
[1735870039562,3.2078,3466.5,3465.9,1.0014344]
[1735870039563,0.28879,3466.3,3465.9,1.0014344]
[1735870039867,0.28879,3466.3,3465.8,4.49845533]
[1735870039868,0.28879,3466.3,3466.1,1.2902344]
[1735870040068,0.28878,3466.4,3466.2,0.28879]
[1735870040267,0.28878,3466.4,3466.3,1.0014344]
[1735870040563,0.28876,3466.7,3466.5,0.28877]
[1735870040864,0.28876,3466.7,3466.4,0.28878]
[1735870041467,40.8,3466.8,3466.4,0.28878]
[1735870041668,0.28877,3466.6,3466.3,1.2902244]
[1735870042062,1.2902144,3466.5,3466.2,1.41479]
[1735870042269,1.2902144,3466.5,3466.3,0.28879]
[1735870042969,0.28878,3466.5,3466.3,0.28879]
[1735870045470,0.28878,3466.5,3466.2,1.41479]
[1735870045670,0.28878,3466.5,3466.2,1.126]
[1735870045875,0.28878,3466.5,3466.1,4.2092344]
[1735870046171,0.28877,3466.6,3466.3,0.28879]
[1735870046569,0.28877,3466.5,3466.3,0.28879]
[1735870046870,0.28876,3466.6,3466.3,0.28879]
[1735870047069,0.28876,3466.6,3466.3,1.2902244]
[1735870047474,0.28877,3466.5,3466.3,1.2902244]
[1735870047881,0.28877,3466.6,3466.3,1.2902244]
[1735870048066,1.0014344,3466.7,3466.3,1.2902244]
[1735870048266,0.28877,3466.5,3466.3,1.2902244]
[1735870050371,0.28877,3466.5,3466.3,0.28879]
[1735870050566,0.28878,3466.4,3466.2,1.4148]
[1735870050871,0.28877,3466.6,3466.3,0.28879]
[1735870051070,1.2902044,3466.6,3466.3,0.28879]
[1735870051274,0.28878,3466.5,3466.3,0.28879]
[1735870051968,0.28877,3466.6,3466.4,0.28878]
[1735870052272,0.28877,3466.5,3466.3,1.2902244]
[1735870052976,0.28876,3466.7,3466.5,0.28877]
[1735870053869,40.8,3466.8,3466.3,1.0014344]
[1735870054072,3.2078,3467.0,3466.9,0.28874]
[1735870054270,3.2078,3467.0,3466.9,1.2901744]
[1735870054972,0.28873,3467.1,3466.9,1.2901744]
[1735870055176,40.8,3467.5,3467.0,0.28873]
[1735870055473,0.28871,3467.3,3467.1,0.28872]
[1735870056575,0.28871,3467.3,3466.9,3.2078]
[1735870056779,0.28871,3467.3,3467.2,0.28872]
[1735870056978,0.28871,3467.3,3467.1,0.28872]
[1735870057173,0.28872,3467.2,3467.1,0.28872]
[1735870057367,0.28872,3467.2,3467.0,0.28873]
[1735870057977,2.27420024,3467.9,3466.9,3.2078]
[1735870058174,2.27420024,3467.9,3467.2,0.28871]
[1735870058472,0.2887,3467.4,3467.2,0.28871]
[1735870058979,0.2887,3467.4,3466.9,3.2078]
[1735870059578,0.2887,3467.4,3467.2,0.28871]
[1735870059876,40.8,3467.8,3466.9,3.2078]
[1735870060078,0.2887,3467.4,3467.2,0.28871]
[1735870060271,40.8,3467.8,3467.0,1.126]
[1735870060867,0.28869,3467.5,3467.4,0.2887]
[1735870061071,0.28868,3467.6,3467.4,0.28869]
[1735870061474,0.28869,3467.6,3467.4,0.2887]
[1735870061676,0.28868,3467.7,3467.4,3.2078]
[1735870061876,0.28869,3467.6,3467.4,3.49649]
[1735870062669,0.28868,3467.7,3467.5,0.28869]
[1735870062885,41.08867,3467.8,3467.6,0.28868]
[1735870063281,41.08867,3467.8,3467.6,0.28867]
[1735870063879,40.8,3467.8,3467.4,3.2078]
[1735870064183,40.8,3467.8,3467.7,0.28867]
[1735870064382,40.8,3467.8,3467.4,3.2078]
[1735870064684,0.28867,3467.8,3467.6,0.28868]
[1735870065182,40.8,3467.9,3467.4,3.2078]
[1735870065480,41.08866,3467.9,3467.8,0.28867]
[1735870065881,40.8,3467.9,3467.8,0.28867]
[1735870066476,3.2078,3468.4,3467.9,0.28866]
[1735870066681,3.2078,3468.4,3467.4,3.2078]
[1735870066891,0.28865,3468.1,3467.9,0.28865]
[1735870067084,0.28865,3468.0,3467.9,0.28865]
[1735870068178,0.28864,3468.1,3467.9,0.28865]
[1735870068379,0.28865,3468.0,3467.9,0.28865]
[1735870069185,3.2078,3468.4,3467.9,0.28865]
[1735870069386,0.28865,3468.0,3467.8,0.28866]
[1735870069590,0.28865,3468.0,3467.7,1.125]
[1735870069776,0.28865,3468.0,3467.8,0.28866]
[1735870069976,3.2078,3468.4,3467.8,0.28866]
[1735870069977,0.28866,3467.9,3467.8,0.28866]
[1735870070287,0.28865,3468.0,3467.8,0.28867]
[1735870070789,0.28866,3467.9,3467.8,0.28867]
[1735870072292,0.28866,3467.9,3467.7,1.41367]
[1735870072791,0.28866,3467.9,3467.8,0.28867]
[1735870073593,0.28866,3467.9,3467.7,1.125]
[1735870073793,0.28866,3467.9,3467.7,1.41367]
[1735870074688,0.28866,3467.9,3467.8,0.28867]
[1735870075593,3.2078,3468.4,3467.9,0.28866]
[1735870075594,0.28865,3468.0,3467.9,0.28866]
[1735870076095,3.2078,3468.4,3467.7,1.125]